[Event "Mongolian Championship Women 2022"]
[Site "Chingis Khentii"]
[Date "2022.05.16"]
[Round "5.4"]
[White "Anu, Bayar"]
[Black "Munkhzul, Davaakhuu"]
[Result "0-1"]
[ECO "E49"]
[WhiteElo "2102"]
[BlackElo "1991"]
[Annotator "TA"]
[PlyCount "96"]
[EventDate "2022.05.12"]
[EventType "tourn"]
[EventCountry "MGL"]
[SourceTitle "playchess.com"]
[Source "ChessBase"]
[SourceQuality "1"]
[TimeControl "40/5400+30:1800+30"]

{[%evp 18,95,-3,-5,-3,-9,0,-18,-10,-41,-25,-35,0,0,-4,-18,0,-18,-22,-104,-97,-106,-129,-111,-102,-108,-85,-87,-83,-79,-47,-160,-165,-241,-204,-204,-189,-196,-213,-214,-173,-179,-177,-199,-162,-207,-200,-264,-272,-337,-349,-385,-392,-433,-366,-396,-379,-393,-366,-372,-370,-412,-390,-731,-728,-844,-830,-983,-970,-2031,-2164,-2139,-2014,-1994,-1526,-1748,-1125,-29969,-29967,-29999]} 1. d4 {[%emt 0:00:03]} Nf6 {[%emt 0:00:07]} 2. c4 {[%emt 0:00:45]} e6 {[%emt 0:00:08]} 3. Nc3 {[%emt 0:02:57]} Bb4 {[%emt 0:00:21]} 4. e3 {[%emt 0:01:40]} O-O {[%emt 0:00:11]} 5. Bd3 {[%emt 0:00:56]} d5 {[%emt 0:00:09]} 6. Nge2 {[%emt 0:01:16]} dxc4 {[%emt 0:00:17]} 7. Bxc4 {[%emt 0:00:08]} c5 {[%emt 0:00:20]} 8. a3 {[%emt 0:04:55]} Bxc3+ {[%emt 0:00:08]} 9. bxc3 {[%emt 0:01:03] 9.bxc3 is better than 9.Nxc3.} Qc7 {[%emt 0:00:10]} 10. Ba2 {[%emt 0:03:18]} b6 {[%emt 0:00:22] E49: Nimzo-Indian: Rubinstein: 5 Bd3 d5 6 a3 Bxc3+ 7 bxc3.} 11. O-O {[%emt 0:01:46]} Ba6 {[%emt 0:00:40]} 12. f3 {[%emt 0:02:48]} Nc6 {[%emt 0:00:30] The position is equal.} 13. Rf2 {[%emt 0:02:48]} Rad8 {[%emt 0:04:48]} 14. Bb2 {[%emt 0:07:35]} e5 {[%emt 0:27:13] [#]} 15. Qa4 $146 {[%emt 0:07:08]} ({Predecessor:} 15. d5 Bxe2 16. Rxe2 e4 17. fxe4 Ne5 18. Qf1 Nd3 19. Bb1 Nxb2 20. Rxb2 Qe5 21. Rb3 {0-1 (52) Valenta,J (2168)-Portych,V (2148) ICCF email 2003}) 15... Na5 {[%emt 0:03:32]} 16. Ng3 {[%emt 0:03:15]} Bd3 {[%emt 0:02:49]} 17. Qd1 {[%emt 0:05:51]} Bc4 {[%emt 0:01:44]} 18. Qe1 {[%emt 0:15:09]} (18. e4 $1 $11) 18... Rfe8 {[%emt 0:03:06]} 19. dxe5 {[%emt 0:07:01]} Qxe5 {[%emt 0:02:57]} 20. e4 {[%emt 0:00:33]} Bxa2 {[%emt 0:01:14]} 21. Rxa2 {[%emt 0:00:10]} Nc4 {[%emt 0:00:17][%cal Of6d5] Pair of Knights!} 22. Bc1 {[%emt 0:01:46]} Rd3 $36 {[%emt 0:00:56][%mdl 2048] Black is really pushing.} 23. Rac2 {[%emt 0:02:25]} Red8 {[%emt 0:01:12] And now ...Rd1 would win.} 24. Qe2 {[%emt 0:01:52] Black converts the advantage convincingly.} (24. Rf1 $15) 24... Rxc3 $17 {[%emt 0:02:39] Black is much more active.} 25. f4 {[%emt 0:01:14] [#]} (25. Nf5 $142 Nxa3 26. Rxc3 Qxc3 27. Bb2) 25... Rxc2 $1 {[%emt 0:01:27]} 26. Qxc2 {[%emt 0:00:21]} Qd4 {[%emt 0:00:10] Strongly threatening ...Ng4.} 27. h3 {[%emt 0:02:46] Inhibits Ng4.} Qd1+ {[%emt 0:06:23]} 28. Kh2 {[%emt 0:00:42]} Qxc2 {[%emt 0:00:23]} 29. Rxc2 {[%emt 0:00:05]} Na5 {[%emt 0:00:09]} 30. Bb2 {[%emt 0:01:29]} Ne8 {[%emt 0:00:39]} 31. Nf5 {[%emt 0:01:03]} Kf8 {[%emt 0:00:33]} 32. Ne3 {[%emt 0:01:12]} Rd3 {[%emt 0:01:43]} 33. Nd5 {[%emt 0:05:29]} Nd6 {[%emt 0:00:43]} 34. Nc7 {[%emt 0:01:25]} Nxe4 {[%emt 0:04:03]} 35. Re2 {[%emt 0:00:20]} Nd6 {[%emt 0:00:19]} 36. Be5 {[%emt 0:04:03] [#] Intending Bxd6+ and mate.} Nab7 {[%emt 0:00:19]} 37. a4 {[%emt 0:00:20]} f6 {[%emt 0:01:42]} 38. Bxd6+ {[%emt 0:01:51]} Nxd6 $19 {[%emt 0:01:06][%mdl 4096] Endgame KRN-KRN} ({Weaker is} 38... Rxd6 39. Re8+ Kf7 40. Ra8 $19) 39. a5 {[%emt 0:00:02]} Kf7 {[%emt 0:07:18]} 40. a6 $2 {[%emt 0:00:00]} (40. axb6 axb6 41. Rb2) 40... c4 {[%emt 0:00:00][%cal Bc5c4,Bc4c3][%mdl 32]} 41. Rb2 {[%emt 0:04:09]} c3 {[%emt 0:02:42]} 42. Rc2 {[%emt 0:03:37]} b5 {[%emt 0:00:29][%cal Bb6b5,Bb5b4][%mdl 32] Threatens to win with ...b4.} 43. f5 {[%emt 0:01:01]} b4 {[%emt 0:00:31]} 44. Ne6 {[%emt 0:00:14]} Nxf5 {[%emt 0:00:34]} 45. Nc5 {[%emt 0:00:11]} Rd2 {[%emt 0:00:32]} 46. Rc1 {[%emt 0:00:17]} Nh4 {[%emt 0:00:50] ( -> ...c2)} 47. Kg3 {[%emt 0:00:26]} g5 {[%emt 0:00:09][%csl Gh4][%cal Rd2g2]} 48. Ne4 {[%emt 0:00:20]} Rxg2# {[%emt 0:00:08] Weighted Error Value: White=0.53/Black=0.11 (very precise)} 0-1

[Event "Mongolian Championship Women 2022"]
[Site "Chingis Khentii"]
[Date "2022.05.16"]
[Round "5.5"]
[White "Munkhzul, Turmunkh"]
[Black "Munguntuul, Batkhuyag"]
[Result "1-0"]
[ECO "B15"]
[WhiteElo "2294"]
[BlackElo "2443"]
[Annotator "TA"]
[PlyCount "105"]
[EventDate "2022.05.12"]
[EventType "tourn"]
[EventCountry "MGL"]
[SourceTitle "playchess.com"]
[Source "ChessBase"]
[SourceQuality "1"]
[TimeControl "40/5400+30:1800+30"]

{[%evp 17,105,5,8,12,8,0,0,0,1,0,29,6,9,0,42,42,45,45,43,27,37,33,34,33,35,33,35,34,42,31,50,45,57,52,58,67,65,66,62,37,58,52,89,84,154,133,188,83,181,137,212,203,255,233,179,175,180,168,164,162,807,765,648,602,1194,1161,760,1318,1148,991,1463,1380,29979,29980,29980,29981,29981,29982,29982,29982,29984,29985,29984,29985,29984,29984,29989,29990,29990,29991]} 1. e4 {[%emt 0:00:06]} c6 {[%emt 0:00:03]} 2. d4 {[%emt 0:00:15]} d5 {[%emt 0:00:03]} 3. Nc3 {[%emt 0:00:17]} dxe4 {[%emt 0:00:06]} 4. Nxe4 {[%emt 0:00:06]} Nf6 {[%emt 0:00:05]} 5. Nxf6+ {[%emt 0:01:45]} exf6 {[%emt 0:00:03]} 6. Bc4 {[%emt 0:02:35]} Bd6 {[%emt 0:00:53]} 7. Qe2+ {[%emt 0:00:24]} Qe7 {[%emt 0:01:17]} 8. Qxe7+ {[%emt 0:00:47]} Kxe7 {[%emt 0:00:22]} 9. Ne2 {[%emt 0:02:02][%cal Bg1e2,Be2f4,Bf4d3][%mdl 32]} Bf5 {[%emt 0:17:52]} 10. c3 {[%emt 0:04:12] B15: Caro-Kann: 3 Nc3: 3...g6 and 3...dxe4 4 Nxe4 Nf6 5 Nxf6+ exf6.} Re8 {[%emt 0:08:24]} 11. Bf4 {[%emt 0:03:04]} Bxf4 {[%emt 0:07:12]} 12. Nxf4 {[%emt 0:00:09] The position is equal.} Kf8+ {[%emt 0:00:15]} 13. Kd2 {[%emt 0:00:53]} Nd7 {[%emt 0:00:08]} 14. Bd3 {[%emt 0:03:41] [#]} Bxd3 $146 {[%emt 0:06:02]} ({Predecessor:} 14... Be6 15. Rhe1 g6 16. Re3 Nb6 17. b3 Rad8 18. Rae1 Bd5 19. Rxe8+ Rxe8 20. Rxe8+ Kxe8 {½-½ (28) Ruiz Delgado,B (1723)-Marrero Cardenes,A (2003) Las Palmas 2014}) 15. Nxd3 {[%emt 0:00:35]} Re7 {[%emt 0:03:00][%cal Oc6c5]} 16. Rhe1 {[%emt 0:03:11]} Rae8 {[%emt 0:00:39]} 17. Rxe7 {[%emt 0:02:31]} Rxe7 {[%emt 0:00:58]} 18. Re1 {[%emt 0:01:52]} Rxe1 {[%emt 0:01:07]} 19. Kxe1 $11 {[%emt 0:00:25][%mdl 4096] Endgame KN-KN} Ke7 {[%emt 0:00:04]} 20. Kd2 {[%emt 0:01:12]} Kd6 {[%emt 0:00:07]} 21. b3 {[%emt 0:01:49]} f5 {[%emt 0:03:48]} 22. c4 {[%emt 0:03:22]} b6 {[%emt 0:12:02]} 23. f3 {[%emt 0:04:53]} f6 {[%emt 0:04:34]} 24. Ke3 {[%emt 0:03:22]} Nf8 {[%emt 0:04:03]} 25. Nf4 {[%emt 0:06:41]} g6 {[%emt 0:11:33]} 26. b4 {[%emt 0:04:24]} Ke7 {[%emt 0:03:06]} 27. a4 {[%emt 0:06:11]} g5 {[%emt 0:04:16]} 28. Ne2 {[%emt 0:04:10]} Ne6 {[%emt 0:02:23]} 29. g3 {[%emt 0:10:38]} Kd6 {[%emt 0:02:52]} 30. Kd3 {[%emt 0:01:34]} h5 {[%emt 0:04:53] [#]} (30... Nf8 $142) 31. c5+ $1 $16 {[%emt 0:05:44]} Kc7 {[%emt 0:03:05]} (31... bxc5 $16 32. dxc5+ Kd7) 32. f4 {[%emt 0:03:16]} (32. Kc4 $18 {is the precise move to win.}) 32... Nf8 {[%emt 0:00:41]} (32... bxc5 $16 33. bxc5 (33. dxc5 a5 $11) 33... Kd7) 33. Kc4 {[%emt 0:02:40]} Ng6 {[%emt 0:00:29]} (33... bxc5 $16 34. dxc5 (34. bxc5 h4 $16) 34... Kb7) 34. d5 $18 {[%emt 0:02:07]} bxc5 {[%emt 0:00:02]} 35. Kxc5 {[%emt 0:00:30]} ({Resist} 35. bxc5 $6 a6 36. dxc6 Ne7 $16) 35... cxd5 {[%emt 0:00:08]} 36. Nd4 {[%emt 0:01:19]} h4 {[%emt 0:00:59]} 37. fxg5 {[%emt 0:05:58]} ({But not} 37. Kxd5 Kd7 $16) 37... fxg5 {[%emt 0:00:02]} 38. Nxf5 {[%emt 0:00:29]} Ne5 $2 {[%emt 0:00:33]} (38... hxg3 39. hxg3 Ne5 40. Kxd5 Nd3) 39. gxh4 {[%emt 0:04:17]} gxh4 {[%emt 0:00:07]} 40. Nxh4 {[%emt 0:00:00]} Nd3+ {[%emt 0:00:00]} 41. Kxd5 {[%emt 0:01:03]} Nxb4+ {[%emt 0:02:19]} 42. Kc4 {[%emt 0:01:30]} Nc6 {[%emt 0:02:21]} 43. Ng6 {[%emt 0:01:08]} Kb6 {[%emt 0:10:04]} 44. h4 {[%emt 0:00:36][%cal Bh2h4,Bh4h5,Bh5h6,Bh6h7][%mdl 32] [#] h5 would kill now.} Ka5 {[%emt 0:00:06]} 45. h5 {[%emt 0:00:23] White mates.} Nd8 {[%emt 0:00:43]} 46. h6 {[%emt 0:07:34]} Nf7 {[%emt 0:00:15]} 47. h7 {[%emt 0:00:07]} Kxa4 {[%emt 0:00:07]} 48. Kd5 {[%emt 0:00:15]} a5 {[%emt 0:00:57]} 49. Ne5 {[%emt 0:00:21]} Nh8 {[%emt 0:00:02]} 50. Ke6 {[%emt 0:00:57]} Kb3 {[%emt 0:00:09]} 51. Nf7 {[%emt 0:00:14]} a4 {[%emt 0:00:13]} 52. Nxh8 {[%emt 0:00:11]} a3 {[%emt 0:00:02]} 53. Nf7 {[%emt 0:00:18] Weighted Error Value: White=0.07 (flawless) /Black=0.26 (precise)} 1-0

[Event "Mongolian Championship Women 2022"]
[Site "Chingis Khentii"]
[Date "2022.05.16"]
[Round "5.6"]
[White "Khulan, Enkhsaikhan"]
[Black "Mungunzul, Bat-Erdene"]
[Result "1/2-1/2"]
[ECO "D02"]
[WhiteElo "2111"]
[BlackElo "2091"]
[Annotator "TA"]
[PlyCount "210"]
[EventDate "2022.05.12"]
[EventType "tourn"]
[EventCountry "MGL"]
[SourceTitle "playchess.com"]
[Source "ChessBase"]
[SourceQuality "1"]
[TimeControl "40/5400+30:1800+30"]

{[%evp 9,210,-10,13,3,8,0,15,14,14,0,0,0,0,-12,-11,-34,-36,-28,-3,-17,-14,-20,0,-10,-8,-4,0,0,0,0,0,-23,-4,-36,0,0,-21,0,0,0,0,0,0,0,0,0,0,0,0,0,0,0,0,0,0,-3,0,-24,0,0,0,0,88,0,0,0,0,0,0,0,0,0,0,0,0,13,87,64,64,72,88,96,174,134,226,226,226,217,220,218,228,254,383,237,933,856,777,0,670,227,1236,1173,1168,1179,893,560,29980,29981,29980,29981,29981,29982,29987,497,530,507,500,312,303,337,572,548,497,402,359,26,53,52,61,6,12,0,22,0,35,0,0,0,0,0,0,0,0,0,0,0,0,0,0,0,0,0,0,0,0,0,0,0,0,0,0,0,0,0,0,0,0,0,0,0,0,0,0,0,0,0,0,0,0,0,0,0,0,0,0,0,0,0,0,0,0,0,0,0,0,0,0,0,0,0,0,0,0]} 1. d4 {[%emt 0:00:05]} d5 {[%emt 0:00:09]} 2. Nf3 {[%emt 0:00:20]} Nf6 {[%emt 0:00:14]} 3. Bf4 {[%emt 0:00:23]} c5 {[%emt 0:00:31]} 4. e3 {[%emt 0:00:34]} Nc6 {[%emt 0:00:43]} 5. Nc3 {[%emt 0:04:11]} a6 {[%emt 0:08:28]} 6. Ne5 {[%emt 0:03:01] D02: 1 d4 d5 2 Nf3 sidelines, including 2...Nf6 3 g3 and 2...Nf6 3 Bf4.} cxd4 {[%emt 0:05:23]} 7. exd4 {[%emt 0:04:38]} Qb6 {[%emt 0:01:22]} 8. Nxc6 {[%emt 0:01:03]} Qxc6 {[%emt 0:00:20]} 9. Be2 {[%emt 0:00:48]} Bf5 {[%emt 0:02:08]} 10. O-O {[%emt 0:00:55]} e6 {[%emt 0:00:20] [#]} 11. Rc1 $146 {[%emt 0:00:52]} ({Predecessor:} 11. g4 Bg6 12. h4 h6 13. Bd3 Bxd3 14. cxd3 Bd6 15. Be5 h5 16. g5 Bxe5 17. dxe5 {1-0 (29) Trent,L (2399)-Gonzalez,F (2049) Chess.com INT 2021}) 11... Be7 {[%emt 0:03:36]} 12. h3 {[%emt 0:02:57]} Rc8 {[%emt 0:08:12]} 13. Bd3 {[%emt 0:01:14]} Bg6 {[%emt 0:00:16]} 14. Ne2 {[%emt 0:01:12]} O-O {[%emt 0:07:12]} 15. c3 {[%emt 0:01:59]} a5 {[%emt 0:03:14]} 16. a4 {[%emt 0:02:10]} Bxd3 {[%emt 0:14:11]} 17. Qxd3 {[%emt 0:00:23]} Qb6 {[%emt 0:00:31]} 18. Ra1 {[%emt 0:05:20]} Rc6 {[%emt 0:02:23]} (18... Qxb2 $2 19. Rfb1 Qxa1 20. Rxa1 $18) 19. Rfb1 {[%emt 0:02:13]} Rfc8 {[%emt 0:02:47]} 20. Qg3 {[%emt 0:08:09]} Ne4 {[%emt 0:02:35]} (20... Qa6 $5 {[%cal Ra6e2]} 21. Qe3 Qb6 $11) 21. Qg4 {[%emt 0:03:35]} Bf8 {[%emt 0:01:03]} 22. Nc1 {[%emt 0:07:51]} e5 {[%emt 0:09:36]} 23. Be3 {[%emt 0:05:59]} exd4 {[%emt 0:00:49]} 24. Bxd4 {[%emt 0:01:30]} Qd8 {[%emt 0:00:08]} 25. Nd3 {[%emt 0:01:26]} Rg6 {[%emt 0:02:59]} 26. Qh5 {[%emt 0:04:13]} Nd2 {[%emt 0:02:26]} 27. Re1 {[%emt 0:03:45]} Nb3 {[%emt 0:01:04]} 28. Rad1 {[%emt 0:00:49]} Nxd4 {[%emt 0:01:11]} 29. cxd4 {[%emt 0:00:13]} Rc2 {[%emt 0:04:30]} 30. Re2 {[%emt 0:13:15]} Rxe2 {[%emt 0:00:26]} 31. Qxe2 {[%emt 0:00:16]} Re6 {[%emt 0:03:38]} 32. Qd2 {[%emt 0:03:17]} Bd6 {[%emt 0:01:21]} 33. Rc1 {[%emt 0:04:13]} h6 {[%emt 0:01:39]} 34. Re1 {[%emt 0:02:19]} Rg6 {[%emt 0:02:36]} 35. Re3 {[%emt 0:04:31]} Qh4 {[%emt 0:02:36]} (35... Re6 $11) 36. Re8+ {[%emt 0:03:46]} (36. Qxa5 $16 Qxd4 37. Qa8+ Kh7 38. Qxb7) 36... Kh7 $11 {[%emt 0:00:31]} 37. Qe3 {[%emt 0:00:15]} Qh5 {[%emt 0:01:03]} 38. b3 {[%emt 0:04:01]} Qd1+ {[%emt 0:02:16]} 39. Ne1 {[%emt 0:00:05]} Bb4 {[%emt 0:00:11]} 40. Qd3 {[%emt 0:00:00]} Qc1 {[%emt 0:00:00]} 41. Kf1 {[%emt 0:02:34]} Bxe1 {[%emt 0:09:24]} 42. Rxe1 {[%emt 0:00:06][%mdl 4096] Endgame KQR-KQR} Qg5 {[%emt 0:00:08]} (42... Qc8 $11 {remains equal.}) 43. g3 {[%emt 0:00:34] Active counter play!} Qd8 {[%emt 0:01:35]} 44. h4 $36 {[%emt 0:03:21][%mdl 2048] White is really pushing.} Kg8 {[%emt 0:00:44]} 45. Qb5 {[%emt 0:00:50] [#] Prevents Qd7. Strongly threatening Re8+.} Kf8 {[%emt 0:05:36] Prevents Re8+.} (45... Qf6 $16 {was called for.}) 46. Re5 {[%emt 0:01:44]} Rd6 {[%emt 0:00:46]} (46... b6 $16) 47. Qxb7 $18 {[%emt 0:01:58]} g6 {[%emt 0:00:16]} 48. Qb5 {[%emt 0:00:45]} Kg7 {[%emt 0:01:12]} 49. Kg2 {[%emt 0:06:26]} h5 {[%emt 0:00:29]} 50. Re8 {[%emt 0:01:13]} Qc7 {[%emt 0:00:42]} (50... Qf6 {might work better.} 51. Qc5 (51. Qxa5 Qxd4 52. Qc7 Rf6 $16) 51... Kh7) 51. Qb8 {[%emt 0:01:04]} Qd7 {[%emt 0:01:46]} (51... Qxb8 52. Rxb8 Rc6) 52. Rg8+ {[%emt 0:04:13]} (52. Rh8 Qe7 $16) 52... Kf6 {[%emt 0:00:10]} 53. Re8 {[%emt 0:03:34]} Kg7 $1 {[%emt 0:00:21]} 54. Qc8 $2 {[%emt 0:04:40]} (54. Rh8 Qe7 $16) (54. b4 axb4 55. Rg8+ (55. Qxb4 Qxe8 56. Qxd6 Qe4+ 57. Kf1 Qh1+ 58. Ke2 Qe4+ 59. Kf1 Qh1+ 60. Ke2 Qe4+ 61. Kf1 $11) (55. Rh8 Qe7 $18) 55... Kf6 56. a5 (56. Qxb4 Qe6 $16)) 54... Qa7 {[%emt 0:02:03]} (54... Kf6 55. Qb8 Re6) 55. Rg8+ {[%emt 0:01:51]} (55. Rh8 Qe7 56. Re8 Qf6 $18) 55... Kf6 {[%emt 0:00:11]} 56. Qf8 {[%emt 0:00:42]} Qd7 {[%emt 0:10:18]} 57. Qh6 {[%emt 0:01:50] [#] Qg5+ would kill now.} Qf5 {[%emt 0:01:17] Prevents Qg5+.} 58. Qh8+ {[%emt 0:00:08]} Ke7 {[%emt 0:00:39]} 59. Re8+ {[%emt 0:00:20]} Kd7 {[%emt 0:00:06]} 60. Rd8+ {[%emt 0:01:24]} Kc7 {[%emt 0:00:12]} 61. Rxd6 {[%emt 0:00:14]} (61. Ra8 $142 Qe4+ 62. Kh2 Kd7 63. Qc8+ Ke7 64. Qf8+ Ke6 65. Re8+ Kf6 66. Qxd6+ Kg7 67. Qf8+ Kf6 68. Qh8+ Kf5 69. Re5+ Kg4 70. Rxe4+ Kf3 71. Re1 f5 72. Qe5 Kxf2 73. Qe3#) 61... Kxd6 {[%emt 0:00:27] KQ-KQ} 62. Qd8+ {[%emt 0:01:06]} Kc6 {[%emt 0:00:13]} 63. Qe8+ {[%emt 0:01:22]} (63. Qa8+ Kd7 64. Qxa5 Qe4+ 65. Kg1 Qb1+ 66. Kg2 Qe4+ 67. Kg1 f6 $18) 63... Kd6 {[%emt 0:00:21]} 64. Qb8+ {[%emt 0:00:28]} Kc6 $2 {[%emt 0:00:09]} (64... Ke7 {keeps fighting.} 65. Qc7+ Ke6) 65. Qb5+ {[%emt 0:00:16]} Kd6 {[%emt 0:00:08]} 66. Qc5+ {[%emt 0:01:56]} Kd7 {[%emt 0:00:11]} 67. f3 $2 {[%emt 0:00:13] Inhibits Qe4.} (67. Qxa5 Qe4+ 68. Kg1 Qb1+ 69. Kh2 Qf5 $18) (67. Qa7+ $18 Ke6 68. Qb6+ Ke7 69. Qxa5) 67... f6 {[%emt 0:00:39]} 68. Kf2 {[%emt 0:00:33]} (68. Qxa5 Qc2+ 69. Kh3 Qf5+ 70. Kh2 Qc2+ 71. Kh1 Qd1+ 72. Kh2 Qc2+ 73. Kh3 Qf5+ 74. Kh2 Qc2+ $11) 68... g5 $1 {[%emt 0:00:20]} 69. Qb5+ {[%emt 0:00:50]} (69. Qxa5 Qc2+ 70. Kg1 Qd1+ 71. Kh2 Qe2+ 72. Kg1 Qd1+ 73. Kf2 Qc2+ 74. Ke3 Qxb3+ 75. Ke2 Qc4+ 76. Ke3 Qb3+ 77. Kd2 Qxf3 $11) (69. Ke2 $14) 69... Kd6 $1 $11 {[%emt 0:00:20]} 70. hxg5 {[%emt 0:00:29]} fxg5 {[%emt 0:00:03]} 71. Qb8+ {[%emt 0:00:33]} (71. Qxa5 Qc2+ 72. Ke1 Qxb3 $16) 71... Kd7 {[%emt 0:00:18]} 72. Ke3 {[%emt 0:00:46]} h4 {[%emt 0:01:18] The position is equal.} 73. gxh4 {[%emt 0:00:16]} gxh4 {[%emt 0:00:04]} ({Resist} 73... Qe6+ 74. Kf2 gxh4 75. Qb5+ Kd6 76. Qb6+ (76. Qxa5 Qg8 $16) 76... Kd7 77. Qa7+ (77. Qxa5 Qg8 $16) 77... Kd6 78. Qxa5 $16) 74. Qa7+ {[%emt 0:00:42]} Kc6 {[%emt 0:00:49]} 75. Qa6+ {[%emt 0:00:34]} Kd7 {[%emt 0:00:09]} 76. Qb5+ {[%emt 0:00:30]} Ke7 {[%emt 0:00:19]} 77. Qxa5 {[%emt 0:00:20]} Qg5+ {[%emt 0:01:08]} 78. Kd3 {[%emt 0:00:11]} Qf5+ {[%emt 0:00:11]} 79. Kd2 {[%emt 0:00:36]} Qxf3 {[%emt 0:00:56]} 80. Qc7+ {[%emt 0:00:23]} Ke6 {[%emt 0:01:19]} 81. Qc8+ {[%emt 0:00:36]} Kf7 {[%emt 0:00:27]} 82. Qd7+ {[%emt 0:00:32]} Kg6 {[%emt 0:00:16]} 83. a5 {[%emt 0:00:45]} h3 {[%emt 0:02:29]} 84. a6 {[%emt 0:00:22] Black must now prevent Qe6+.} Qg2+ {[%emt 0:00:29]} 85. Kc3 {[%emt 0:00:17]} h2 {[%emt 0:00:13]} 86. Qe6+ {[%emt 0:00:34]} Kh5 {[%emt 0:01:26]} 87. Qf5+ {[%emt 0:00:44]} Kh4 {[%emt 0:00:20]} 88. a7 {[%emt 0:00:39]} h1=Q {[%emt 0:00:26]} 89. Qh7+ {[%emt 0:00:19]} Kg3 {[%emt 0:00:12] ( -> ...Qe1+)} 90. Qxh1 {[%emt 0:00:38] Really sharp!} Qxh1 {[%emt 0:00:02]} 91. a8=Q {[%emt 0:00:14] Inhibits Qa1+. KQ-KQ} Qe1+ {[%emt 0:00:12]} 92. Kb2 {[%emt 0:00:53]} Qd2+ {[%emt 0:00:14]} 93. Ka3 {[%emt 0:00:11]} Qxd4 {[%emt 0:00:10] ...Qa1+ is the strong threat.} 94. Qg8+ {[%emt 0:00:17]} Kf3 {[%emt 0:00:11]} 95. b4 {[%emt 0:00:19]} Qc3+ {[%emt 0:01:30]} 96. Ka4 {[%emt 0:00:07]} d4 {[%emt 0:00:11] Hoping for ...d3.} 97. Qf7+ {[%emt 0:01:08]} Ke2 {[%emt 0:00:38] Threatens to win with ...d3.} 98. b5 {[%emt 0:01:34]} Qa1+ {[%emt 0:00:46]} 99. Kb4 {[%emt 0:00:00]} Qb2+ {[%emt 0:00:19]} 100. Kc5 {[%emt 0:00:00]} Qc3+ {[%emt 0:00:41]} 101. Qc4+ {[%emt 0:00:29]} Qxc4+ {[%emt 0:01:03]} 102. Kxc4 {[%emt 0:00:05]} d3 {[%emt 0:00:06] And now ...d2 would win.} 103. b6 {[%emt 0:00:04]} d2 {[%emt 0:00:02]} 104. b7 {[%emt 0:00:08]} d1=Q {[%emt 0:00:05]} 105. b8=Q {[%emt 0:00:10] Against Qb1} Qd3+ {[%emt 0:08:37] Black escapes into a draw.  Weighted Error Value: White=0.31/Black=0.25 (precise)} 1/2-1/2

[Event "Mongolian Championship Women 2022"]
[Site "Chingis Khentii"]
[Date "2022.05.18"]
[Round "6.1"]
[White "Enkhtuul, Altan-Ulzii"]
[Black "Anu, Bayar"]
[Result "1-0"]
[ECO "B20"]
[WhiteElo "2228"]
[BlackElo "2102"]
[Annotator "TA"]
[PlyCount "73"]
[EventDate "2022.05.12"]
[EventType "tourn"]
[EventCountry "MGL"]
[SourceTitle "playchess.com"]
[Source "ChessBase"]
[SourceQuality "1"]
[TimeControl "40/5400+30:1800+30"]

{[%evp 9,72,37,61,20,43,6,14,8,35,31,45,46,39,36,32,-6,5,-6,0,0,1,0,27,-7,-21,-105,-23,-15,27,0,47,32,45,7,16,19,71,51,60,34,85,84,230,219,239,231,422,422,415,408,406,371,602,594,539,525,1149,1119,956,726,29991,29992,29998,29999,29999]} 1. e4 {[%emt 0:00:01]} c5 {[%emt 0:05:48]} 2. b3 {[%emt 0:02:15]} d5 {[%emt 0:04:36]} 3. exd5 {[%emt 0:00:21]} Qxd5 {[%emt 0:00:04]} 4. Nc3 {[%emt 0:00:41]} Qd6 {[%emt 0:00:09]} 5. Bb2 {[%emt 0:00:50]} Nf6 {[%emt 0:00:27]} 6. Nf3 {[%emt 0:01:24] [#] B20: Sicilian: Unusual White 2nd moves.} (6. Nb5 $5 {[%cal Rb5d6]} Qd8 7. Be5 $14) 6... a6 $146 {[%emt 0:00:11] Prevents Nb5.} ({Predecessor:} 6... Nc6 7. Bb5 a6 8. Bxc6+ Qxc6 9. Qe2 Bg4 10. O-O-O e6 11. d4 cxd4 12. Rxd4 Bxf3 13. gxf3 {0-1 (33) Kumala,A (2176)-Martemianov,I (2365) Chess.com INT 2020}) 7. a4 {[%emt 0:00:30]} Bg4 {[%emt 0:01:22]} 8. h3 {[%emt 0:05:36] The position is equal.} Bh5 {[%emt 0:00:14]} (8... Bxf3 $5 9. Qxf3 Nc6 $14) 9. g4 {[%emt 0:01:48]} Bg6 {[%emt 0:01:17]} 10. Bg2 {[%emt 0:00:31]} Nc6 {[%emt 0:06:11]} 11. d3 {[%emt 0:00:08]} e6 {[%emt 0:12:21]} 12. Qd2 {[%emt 0:13:07]} h6 {[%emt 0:05:03]} 13. Nh4 {[%emt 0:14:08]} Bh7 $1 {[%emt 0:02:10]} 14. O-O-O {[%emt 0:08:32]} Be7 {[%emt 0:01:31]} 15. f4 {[%emt 0:07:41]} Nd5 {[%emt 0:09:24]} 16. Nxd5 {[%emt 0:03:47]} (16. Nf5 $5 Bxf5 17. gxf5 $11) 16... exd5 {[%emt 0:00:11]} 17. Rde1 {[%emt 0:02:50]} (17. Bxg7 $11 Rg8 18. Be5 Nxe5 19. fxe5 Qxe5 {[#]} 20. Kb1 $1) 17... O-O-O {[%emt 0:02:36]} (17... O-O $17 18. Nf3 Bd8) 18. Nf3 $11 {[%emt 0:00:49]} d4 {[%emt 0:01:41]} 19. Rhf1 {[%emt 0:08:01]} f5 {[%emt 0:06:17]} (19... Qc7 $11) 20. Kb1 {[%emt 0:02:01]} Rhf8 {[%emt 0:01:43]} 21. Ne5 {[%emt 0:04:19]} Nxe5 {[%emt 0:02:03]} 22. Rxe5 {[%emt 0:01:05] Threatens to win with Rfe1.} Bf6 {[%emt 0:02:23]} (22... Qc7 $1 $11) 23. Rd5 $36 {[%emt 0:00:21][%mdl 2048] White fights for an advantage. White is more active.} Qc7 {[%emt 0:01:07]} 24. Ba3 {[%emt 0:00:38]} (24. g5 $5 {[%cal Rg5f6]} Rxd5 25. Bxd5 hxg5 26. fxg5 $14) 24... Rxd5 {[%emt 0:01:58]} (24... Be7 $1 $14) 25. Bxd5 {[%emt 0:00:02]} Qd6 {[%emt 0:00:58] Loses the game.} (25... Be7 $16 {might work better.}) 26. Qg2 $18 {[%emt 0:00:17]} Qb6 {[%emt 0:03:21]} 27. Re1 {[%emt 0:03:29]} fxg4 $2 {[%emt 0:04:45]} (27... Kb8 28. g5 hxg5) 28. hxg4 {[%emt 0:03:08] Strongly threatening Re6.} Bg8 {[%emt 0:00:21] Inhibits Re6.} 29. Bxg8 {[%emt 0:00:40]} Rxg8 {[%emt 0:00:02]} 30. Qd5 {[%emt 0:00:13] Inhibits Qd6.} Rd8 {[%emt 0:00:16]} (30... Rh8 31. g5 (31. Qxc5+ Qxc5 32. Bxc5 Rd8 $16) 31... Bd8 32. Bxc5 Qc6 33. Qxc6+ bxc6) 31. Qf5+ {[%emt 0:01:06]} Rd7 {[%emt 0:01:36]} 32. Re8+ {[%emt 0:03:12]} Kc7 {[%emt 0:01:36]} 33. Bxc5 {[%emt 0:00:59]} Qc6 {[%emt 0:01:18]} 34. a5 {[%emt 0:00:28] White wants to mate with Bb6+.} Qd5 {[%emt 0:05:42]} 35. Bb6+ {[%emt 0:00:21] White mates.} Kd6 {[%emt 0:00:08] [#]} 36. Re6+ $3 {[%emt 0:00:19][%mdl 512]} Qxe6 {[%emt 0:00:19]} 37. Qc5# {[%emt 0:13:22] Weighted Error Value: White=0.15 (very precise) /Black=0.60} 1-0